fUSD/lending_fUSD_20240625
["ID","MTS","AMOUNT","RATE_DAILY","PERIOD"]
[330411254,1719353461078,-1103.9,0.00019726,2]
[330411255,1719353461087,-500.0,0.00019726,2]
[330411256,1719353461096,-500.0,0.00019726,2]
[330411257,1719353461109,-1459.16,0.00019726,2]
[330411258,1719353461118,-500.0,0.00019726,2]
[330411259,1719353461127,-565.09,0.00019726,2]
[330411260,1719353461136,-500.0,0.00019726,2]
[330411261,1719353461145,-3605.88,0.00019726,2]
[330411262,1719353461154,-1081.43,0.00019726,2]
[330411263,1719353461163,-500.0,0.00019726,2]
[330411264,1719353461172,-647.5,0.00019726,2]
[330411265,1719353461182,-2801.22,0.00019726,2]
[330411266,1719353461191,-500.0,0.00019726,2]
[330411267,1719353461200,-704.17,0.00019726,2]
[330411268,1719353461209,-1277.88,0.00019726,2]
[330411269,1719353461218,-500.0,0.00019726,2]
[330411270,1719353461227,-500.0,0.00019726,2]
[330411271,1719353461242,-500.0,0.00019726,2]
[330411272,1719353461254,-500.0,0.00019726,2]
[330411273,1719353461263,-500.0,0.00019726,2]
[330411274,1719353461272,-675.45,0.00019726,2]
[330411275,1719353461282,-500.0,0.00019726,2]
[330411276,1719353461293,-500.0,0.00019726,2]
[330411277,1719353461302,-849.59,0.00019726,2]
[330411278,1719353461311,-937.37,0.00019726,2]
[330411279,1719353461324,-500.0,0.00019726,2]
[330411280,1719353461333,-2029.16,0.00019726,2]
[330411281,1719353461343,-822.33,0.00019726,2]
[330411282,1719353461353,-500.0,0.00019726,2]
[330411283,1719353461362,-543.19,0.00019726,2]
[330411284,1719353461372,-1692.04,0.00019726,2]
[330411285,1719353461381,-531.55,0.00019726,2]
[330411286,1719353461390,-759.76,0.00019726,2]
[330411287,1719353461399,-500.0,0.00019726,2]
[330411288,1719353461408,-500.0,0.00019726,2]
[330411289,1719353461418,-1258.52,0.00019726,2]
[330411290,1719353461427,-500.0,0.00019726,2]
[330411291,1719353461436,-1706.98,0.00019726,2]
[330411292,1719353461445,-500.0,0.00019726,2]
[330411293,1719353461454,-1221.46,0.00019726,2]
[330411294,1719353461463,-17603.95,0.00019726,2]
[330411295,1719353461472,-1982.89,0.00019726,2]
[330411296,1719353461487,-877.16,0.00019726,2]
[330411297,1719353461496,-9331.76,0.00019726,2]
[330411298,1719353461505,-500.0,0.00019726,2]
[330411299,1719353461514,-536.54,0.00019726,2]
[330411300,1719353461522,-974.81,0.00019726,2]
[330411301,1719353461531,-925.83,0.00019726,2]
[330411302,1719353461539,-560.09,0.00019726,2]
[330411303,1719353461548,-551.55,0.00019726,2]
[330411304,1719353461557,-685.08,0.00019726,2]
[330411305,1719353461565,-500.0,0.00019726,2]
[330411306,1719353461574,-3466.13,0.00019726,2]
[330411307,1719353461584,-4832.03,0.00019726,2]
[330411308,1719353461593,-540.27,0.00019726,2]
[330411309,1719353461602,-1928.39,0.00019726,2]
[330411310,1719353461612,-1123.24,0.00019726,2]
[330411311,1719353461621,-940.08,0.00019726,2]
[330411312,1719353461630,-1735.63,0.00019726,2]
[330411313,1719353461639,-500.0,0.00019726,2]
[330411314,1719353461648,-1401.27,0.00019726,2]
[330411315,1719353461657,-500.0,0.00019726,2]
[330411316,1719353461667,-508.47,0.00019726,2]
[330411317,1719353461676,-1120.54,0.00019726,2]
[330411318,1719353461685,-1200.1,0.00019726,2]
[330411319,1719353461695,-6546.2,0.00019726,2]
[330411320,1719353461704,-199.80086823,0.00019726,2]
[330411321,1719353461713,-884.29,0.00019726,2]
[330411322,1719353461723,-936.45,0.00019726,2]
[330411323,1719353461734,-15110.72,0.00019726,2]
[330411324,1719353461743,-500.0,0.00019726,2]
[330411325,1719353461753,-1706.67,0.00019726,2]
[330411326,1719353461763,-567.04,0.00019726,2]
[330411327,1719353461772,-500.0,0.00019726,2]
[330411328,1719353461782,-650.61,0.00019726,2]
[330411329,1719353461791,-563.18,0.00019726,2]
[330411330,1719353461907,-4133.39,0.00019726,2]
[330411331,1719353461924,-4702.97,0.00019726,2]
[330411332,1719353461934,-1810.29,0.00019726,2]
[330411333,1719353461944,-736.96,0.00019726,2]
[330411334,1719353461954,-648.77,0.00019726,2]
[330411335,1719353461963,-10070.43,0.00019726,2]
[330411336,1719353461973,-789.9,0.00019726,2]
[330411337,1719353461984,-435.1952435,0.00019765,2]
[330411338,1719353461993,-15439.5254807,0.00019779,2]
[330411339,1719353462002,-7026.6134689,0.00019792,2]
[330411340,1719353462011,-7241.5033789,0.00019792,2]
[330411341,1719353462021,-812.0,0.00019805,2]
[330411342,1719353462030,-614.0,0.00019805,2]
[330411343,1719353462040,-537.26,0.00019805,2]
[330411344,1719353462050,-174.01036977,0.000199,2]
[330411345,1719353462059,-161.04296686,0.000199,2]
[330411346,1719353462068,-195.5167332,0.000199,2]
[330411347,1719353462078,-2279.59355078,0.000199,2]
[330411348,1719353462088,-172.90434161,0.0001999,2]
[330411349,1719353462099,-5225.06745227,0.00019995,2]
[330411350,1719353462109,-298377.05070648,0.0002,7]
[330411351,1719353462622,-697.3341,0.0002,7]
[330411352,1719353462633,-5715.72049197,0.0002,7]
[330411353,1719353462649,-835.780956,0.0002,7]
[330411354,1719353462660,-1026.45642444,0.0002,7]
[330411355,1719353462672,-22163.18622214,0.0002,7]
[330411356,1719353462681,-461.29191155,0.0002,2]
[330411357,1719353462691,-156.50641475,0.0002,2]
[330411358,1719353462701,-150.0,0.0002,2]
[330411359,1719353462711,-500.0,0.0002,2]
[330411360,1719353462720,-3049.73,0.0002,2]
[330411361,1719353462731,-1326.61,0.0002,2]
[330411362,1719353462742,-2150.13,0.0002,2]
[330411363,1719353462753,-831.49,0.0002,2]
[330411364,1719353462762,-500.0,0.0002,2]
[330411365,1719353462771,-7133.34,0.0002,2]
[330411366,1719353462781,-500.0,0.0002,2]
[330411367,1719353462790,-500.0,0.0002,2]
[330411368,1719353462800,-500.0,0.0002,2]
[330411369,1719353462810,-164.00372321,0.0002,2]
[330411370,1719353462819,-464.98273158,0.0002,2]
[330411371,1719353462828,-500.0,0.0002,2]
[330411372,1719353462838,-500.0,0.0002,2]
[330411373,1719353462847,-3326.56,0.0002,2]
[330411374,1719353462856,-500.0,0.0002,2]
[330411375,1719353462866,-500.0,0.0002,2]
[330411376,1719353462875,-500.0,0.0002,2]
[330411377,1719353462884,-500.0,0.0002,2]
[330411378,1719353462894,-500.0,0.0002,2]
[330411379,1719353462903,-500.9,0.0002,2]
[330411380,1719353462912,-500.0,0.0002,2]
[330411381,1719353462922,-500.0,0.0002,2]
[330411382,1719353462932,-500.0,0.0002,2]
[330411383,1719353462941,-500.0,0.0002,2]
[330411384,1719353462951,-500.0,0.0002,2]
[330411385,1719353462960,-500.0,0.0002,2]
[330411386,1719353462969,-242.97062838,0.0002,2]
[330411387,1719353462983,-257.02937162,0.0002,2]
[330411388,1719353462993,-500.0,0.0002,2]
[330411389,1719353463002,-48.56019594,0.0002,2]
[330411390,1719353463014,-451.43980406,0.0002,2]
[330411391,1719353463024,-78.30013134,0.0002,2]
[330411392,1719353463035,-294.14994472,0.0002,2]
[330411393,1719353463048,-221.00992394,0.0002,2]
[330411394,1719353463058,-500.0,0.0002,2]
[330411395,1719353463068,-42.7173499,0.0002,2]
[330411396,1719353463080,-858.3826501,0.0002,2]
[330411397,1719353463089,-500.0,0.0002,2]
[330411398,1719353463099,-500.0,0.0002,2]
[330411399,1719353463109,-500.0,0.0002,2]
[330411400,1719353463119,-500.0,0.0002,2]
[330411401,1719353463130,-500.0,0.0002,2]
[330411402,1719353463140,-500.0,0.0002,2]
[330411403,1719353463149,-500.0,0.0002,2]
[330411404,1719353463159,-500.0,0.0002,2]
[330411405,1719353463168,-500.0,0.0002,2]
[330411406,1719353463179,-597.96,0.0002,2]
[330411407,1719353463188,-500.0,0.0002,2]
[330411408,1719353463198,-500.0,0.0002,2]
[330411409,1719353463207,-500.0,0.0002,2]
[330411410,1719353463217,-500.0,0.0002,2]
[330411411,1719353463227,-2164.47,0.0002,2]
[330411412,1719353463239,-500.0,0.0002,2]
[330411413,1719353463252,-214.76224686,0.0002,2]
[330411414,1719353463381,-443.87775314,0.0002,2]
[330411415,1719353463391,-500.0,0.0002,2]
[330411416,1719353463400,-1211.81,0.0002,2]
[330411417,1719353463410,-500.0,0.0002,2]
[330411418,1719353463420,-500.0,0.0002,2]
[330411419,1719353463430,-210.53489936,0.0002,2]
[330411420,1719353464502,-210.59579,0.00019178,2]
[330411421,1719353464511,-210.59579,0.00019452,2]
[330411422,1719353464522,-210.59579,0.00019452,2]
[330411423,1719353464532,-210.59579,0.00019452,2]
[330411424,1719353464541,-213.03593626,0.000199,3]
[330411425,1719353464552,-289.46510064,0.0002,2]
[330411426,1719353464563,-500.0,0.0002,2]
[330411427,1719353464572,-319.55213198,0.0002,2]
[330411428,1719353464584,-182.73786802,0.0002,2]
[330411429,1719353464593,-564.79255056,0.0002,2]
[330411430,1719353464602,-500.0,0.0002,2]
[330411431,1719353464611,-500.0,0.0002,2]
[330411432,1719353464621,-500.0,0.0002,2]
[330411433,1719353464630,-500.0,0.0002,2]
[330411434,1719353464639,-500.0,0.0002,2]
[330411435,1719353464649,-500.0,0.0002,2]
[330411436,1719353464659,-1548.75,0.0002,2]
[330411437,1719353464669,-1965.0,0.0002,2]
[330411438,1719353464681,-141.84004912,0.0002,2]
[330411439,1719353464694,-358.15995088,0.0002,2]
[330411440,1719353464703,-409.90389287,0.0002,2]
[330411441,1719353464715,-268.84610713,0.0002,2]
[330411442,1719353464725,-500.0,0.0002,2]
[330411443,1719353464736,-726.6,0.0002,2]
[330411444,1719353464746,-279.41598016,0.0002,2]
[330411445,1719353464758,-807.94401984,0.0002,2]
[330411446,1719353464768,-16.65575368,0.0002,2]
[330411447,1719353464780,-483.34424632,0.0002,2]
[330411448,1719353464790,-593.01,0.0002,2]
[330411449,1719353464799,-580.84,0.0002,2]
[330411450,1719353464808,-500.0,0.0002,2]
[330411451,1719353464818,-340.60083065,0.0002,2]
[330411452,1719353464830,-861.47916935,0.0002,2]
[330411453,1719353464839,-500.0,0.0002,2]
[330411454,1719353464848,-500.0,0.0002,2]
[330411455,1719353464859,-46.19575065,0.0002,2]
[330411456,1719353464888,-803.35,0.00019178,2]
[330411457,1719353464898,-750.15424935,0.0002,2]
[330411458,1719353464908,-500.0,0.0002,2]
[330411459,1719353464918,-500.0,0.0002,2]
[330411460,1719353464928,-500.0,0.0002,2]
[330411461,1719353464937,-500.0,0.0002,2]
[330411462,1719353464947,-1101.42,0.0002,2]
[330411463,1719353464956,-500.0,0.0002,2]
[330411464,1719353464966,-500.0,0.0002,2]
[330411465,1719353464976,-563.78,0.0002,2]
[330411466,1719353464986,-2404.73,0.0002,2]
[330411467,1719353464996,-610.71,0.0002,2]
[330411468,1719353465006,-316.46852418,0.0002,2]
[330411469,1719353465015,-500.0,0.0002,2]
[330411470,1719353465025,-4740.26,0.0002,2]
[330411471,1719353465034,-500.0,0.0002,2]
[330411472,1719353465043,-500.0,0.0002,2]
[330411473,1719353465054,-355.73271927,0.0002,2]
[330411474,1719353465063,-500.0,0.0002,2]
[330411475,1719353465072,-863.15,0.0002,2]
[330411476,1719353465082,-500.0,0.0002,2]
[330411477,1719353465091,-500.0,0.0002,2]
[330411478,1719353465103,-500.0,0.0002,2]
[330411479,1719353465112,-500.0,0.0002,2]
[330411480,1719353465122,-500.0,0.0002,2]
[330411481,1719353465131,-500.0,0.0002,2]
[330411482,1719353465141,-500.0,0.0002,2]
[330411483,1719353465150,-500.0,0.0002,2]
[330411484,1719353465159,-500.0,0.0002,2]
[330411485,1719353465169,-1766.19,0.0002,2]
[330411486,1719353465178,-642.83,0.0002,2]
[330411487,1719353465188,-500.0,0.0002,2]
[330411488,1719353465197,-500.0,0.0002,2]
[330411489,1719353465206,-774.03,0.0002,2]
[330411490,1719353465216,-511.15,0.0002,2]
[330411491,1719353465225,-598.3,0.0002,2]
[330411492,1719353465236,-1074.21,0.0002,2]
[330411493,1719353465250,-660.38,0.0002,2]
[330411494,1719353465259,-1659.78,0.0002,2]
[330411495,1719353465268,-1435.94,0.0002,2]
[330411496,1719353465278,-180.49004568,0.0002,2]
[330411497,1719353465291,-319.50995432,0.0002,2]
[330411498,1719353465301,-500.0,0.0002,2]
[330411499,1719353465310,-1151.84,0.0002,2]
[330411500,1719353465321,-500.0,0.0002,2]
[330411501,1719353465331,-732.51,0.0002,2]
[330411502,1719353465340,-500.0,0.0002,2]
[330411503,1719353465349,-500.0,0.0002,2]
[330411504,1719353465359,-1026.26,0.0002,2]
[330411505,1719353465368,-769.88004568,0.0002,2]
[330411506,1719353465381,-274.22995432,0.0002,2]
[330411507,1719353465390,-500.0,0.0002,2]
[330411508,1719353465400,-228.21278717,0.0002,2]
[330411509,1719353465411,-271.78721283,0.0002,2]
[330411510,1719353465421,-851.17,0.0002,2]
[330411511,1719353465430,-304.41109239,0.0002,2]
[330411512,1719353465442,-3021.95890761,0.0002,2]
[330411513,1719353465452,-500.0,0.0002,2]
[330411514,1719353465461,-500.0,0.0002,2]
[330411515,1719353465470,-500.0,0.0002,2]
[330411516,1719353465479,-781.68,0.0002,2]
[330411517,1719353465489,-819.68,0.0002,2]
[330411518,1719353465498,-500.0,0.0002,2]
[330411519,1719353465508,-654.83,0.0002,2]
[330411520,1719353465518,-1080.79,0.0002,2]
[330411521,1719353465527,-560.46,0.0002,2]
[330411522,1719353465536,-500.0,0.0002,2]
[330411523,1719353465546,-500.0,0.0002,2]
[330411524,1719353465556,-500.0,0.0002,2]
[330411525,1719353465565,-781.5,0.0002,2]
[330411526,1719353465574,-500.0,0.0002,2]
[330411527,1719353465584,-500.0,0.0002,2]
[330411528,1719353465594,-1131.78,0.0002,2]
[330411529,1719353465606,-500.0,0.0002,2]
[330411530,1719353465616,-539.13183182,0.0002,2]
[330411531,1719353465626,-572.46,0.0002,2]
[330411532,1719353465636,-1051.21,0.0002,2]
[330411533,1719353465645,-503.19,0.0002,2]
[330411534,1719353465656,-568.98,0.0002,2]
[330411535,1719353465665,-500.0,0.0002,2]
[330411536,1719353465675,-540.66291376,0.0002,2]
[330411537,1719353465685,-500.0,0.0002,2]
[330411538,1719353465694,-3268.02,0.0002,2]
[330411539,1719353465704,-500.0,0.0002,2]
[330411540,1719353465714,-608.69,0.0002,2]
[330411541,1719353465723,-500.0,0.0002,2]
[330411542,1719353465733,-1824.51,0.0002,2]
[330411543,1719353465745,-500.0,0.0002,2]
[330411544,1719353465755,-500.0,0.0002,2]
[330411545,1719353465765,-1257.0,0.0002,2]
[330411546,1719353465775,-540.28,0.0002,2]
[330411547,1719353465784,-500.0,0.0002,2]
[330411548,1719353465795,-500.0,0.0002,2]
[330411549,1719353465804,-500.0,0.0002,2]
[330411550,1719353465814,-500.0,0.0002,2]
[330411551,1719353465823,-500.0,0.0002,2]
[330411552,1719353465834,-500.0,0.0002,2]
[330411553,1719353465844,-500.0,0.0002,2]
[330411554,1719353465855,-500.0,0.0002,2]
[330411555,1719353465865,-742.98,0.0002,2]
[330411556,1719353465874,-500.0,0.0002,2]
[330411557,1719353465883,-500.0,0.0002,2]
[330411558,1719353465893,-588.8,0.0002,2]
[330411559,1719353465904,-6322.88,0.0002,2]
[330411560,1719353465915,-500.0,0.0002,2]
[330411561,1719353465924,-1091.88,0.0002,2]
[330411562,1719353465934,-501.8,0.0002,2]
[330411563,1719353465943,-500.0,0.0002,2]
[330411564,1719353465953,-500.0,0.0002,2]
[330411565,1719353465962,-815.35,0.0002,2]
[330411566,1719353465971,-500.0,0.0002,2]
[330411567,1719353465981,-882.94,0.0002,2]
[330411568,1719353465992,-500.0,0.0002,2]
[330411569,1719353466001,-500.0,0.0002,2]
[330411570,1719353466011,-500.0,0.0002,2]
[330411571,1719353466020,-500.51,0.0002,2]
[330411572,1719353466029,-1325.52,0.0002,2]
[330411573,1719353466039,-1142.82,0.0002,2]
[330411574,1719353466048,-500.0,0.0002,2]
[330411575,1719353466058,-828.99,0.0002,2]
[330411576,1719353466067,-500.0,0.0002,2]
[330411577,1719353466077,-500.0,0.0002,2]
[330411578,1719353466086,-500.0,0.0002,2]
[330411579,1719353466096,-630.0,0.0002,2]
[330411580,1719353466107,-1016.55,0.0002,2]
[330411581,1719353466116,-796.94,0.0002,2]
[330411582,1719353466126,-500.0,0.0002,2]
[330411583,1719353466136,-500.0,0.0002,2]
[330411584,1719353466145,-1130.97,0.0002,2]
[330411585,1719353466155,-500.0,0.0002,2]
[330411586,1719353466164,-551.57,0.0002,2]
[330411587,1719353466174,-1447.63,0.0002,2]
[330411588,1719353466184,-500.0,0.0002,2]
[330411589,1719353466194,-500.0,0.0002,2]
[330411590,1719353466203,-800.3,0.0002,2]
[330411591,1719353466213,-500.0,0.0002,2]
[330411592,1719353466223,-845.91,0.0002,2]
[330411593,1719353466232,-919.79,0.0002,2]
[330411594,1719353466247,-526.0319822,0.0002,2]
[330411595,1719353466256,-500.0,0.0002,2]
[330411596,1719353466265,-820.16,0.0002,2]
[330411597,1719353466274,-514.96,0.0002,2]
[330411598,1719353466285,-1233.48,0.0002,2]
[330411599,1719353466295,-500.0,0.0002,2]
[330411600,1719353466304,-500.0,0.0002,2]
[330411601,1719353466314,-500.0,0.0002,2]
[330411602,1719353466327,-500.0,0.0002,2]
[330411603,1719353466338,-500.0,0.0002,2]
[330411604,1719353466348,-500.0,0.0002,2]
[330411605,1719353466357,-500.0,0.0002,2]
[330411606,1719353466367,-617.27,0.0002,2]
[330411607,1719353466376,-781.29,0.0002,2]
[330411608,1719353466386,-1164.38,0.0002,2]
[330411609,1719353466395,-526.88,0.0002,2]
[330411610,1719353466404,-500.0,0.0002,2]
[330411611,1719353466413,-500.0,0.0002,2]
[330411612,1719353466423,-500.0,0.0002,2]
[330411613,1719353466432,-500.0,0.0002,2]
[330411614,1719353466526,-500.0,0.0002,2]
[330411615,1719353466535,-500.0,0.0002,2]
[330411616,1719353466545,-500.0,0.0002,2]
[330411617,1719353466555,-535.7,0.0002,2]
[330411618,1719353466564,-500.0,0.0002,2]
[330411619,1719353466573,-608.68,0.0002,2]
[330411620,1719353466583,-500.0,0.0002,2]
[330411621,1719353466592,-847.23,0.0002,2]
[330411622,1719353466601,-551.76,0.0002,2]
[330411623,1719353466611,-500.0,0.0002,2]
[330411624,1719353466620,-500.0,0.0002,2]
[330411625,1719353466629,-1705.97,0.0002,2]
[330411626,1719353466639,-500.0,0.0002,2]
[330411627,1719353466648,-717.36,0.0002,2]
[330411628,1719353466658,-500.0,0.0002,2]
[330411629,1719353466667,-500.0,0.0002,2]
[330411630,1719353466677,-1204.59,0.0002,2]
[330411631,1719353466686,-500.0,0.0002,2]
[330411632,1719353466696,-763.59,0.0002,2]
[330411633,1719353466705,-849.4,0.0002,2]
[330411634,1719353466714,-553.38,0.0002,2]
[330411635,1719353466724,-500.0,0.0002,2]
[330411636,1719353466734,-652.01,0.0002,2]
[330411637,1719353466745,-1073.18,0.0002,2]
[330411638,1719353466753,-1475.72,0.0002,2]
[330411639,1719353466763,-500.0,0.0002,2]
[330411640,1719353466773,-593.46,0.0002,2]
[330411641,1719353466782,-500.0,0.0002,2]
[330411642,1719353466793,-500.0,0.0002,2]
[330411643,1719353466802,-500.0,0.0002,2]
[330411644,1719353466811,-500.0,0.0002,2]
[330411645,1719353466821,-1894.37,0.0002,2]
[330411646,1719353466830,-589.59,0.0002,2]
[330411647,1719353466839,-500.0,0.0002,2]
[330411648,1719353466849,-500.0,0.0002,2]
[330411649,1719353466859,-500.0,0.0002,2]
[330411650,1719353466868,-699.58,0.0002,2]
[330411651,1719353466877,-500.0,0.0002,2]
[330411652,1719353466887,-539.13,0.0002,2]
[330411653,1719353466896,-639.85,0.0002,2]
[330411654,1719353466906,-500.0,0.0002,2]
[330411655,1719353466915,-1373.12,0.0002,2]
[330411656,1719353466925,-479.16913574,0.0002,2]
[330411657,1719353466936,-841.0,0.0002,2]
[330411658,1719353466946,-549.9,0.0002,2]
[330411659,1719353466955,-500.0,0.0002,2]
[330411660,1719353466964,-802.37,0.0002,2]
[330411661,1719353466974,-500.0,0.0002,2]
[330411662,1719353466983,-719.65,0.0002,2]
[330411663,1719353466994,-901.94,0.0002,2]
[330411664,1719353467003,-500.0,0.0002,2]
[330411665,1719353467012,-500.0,0.0002,2]
[330411666,1719353467021,-1427.26,0.0002,2]
[330411667,1719353467031,-500.0,0.0002,2]
[330411668,1719353467040,-500.0,0.0002,2]
[330411669,1719353467050,-500.0,0.0002,2]
[330411670,1719353467059,-500.0,0.0002,2]
[330411671,1719353467068,-500.0,0.0002,2]
[330411672,1719353467077,-500.0,0.0002,2]
[330411673,1719353467086,-500.0,0.0002,2]
[330411674,1719353467096,-500.0,0.0002,2]
[330411675,1719353467107,-500.0,0.0002,2]
[330411676,1719353467117,-500.0,0.0002,2]
[330411677,1719353467126,-500.0,0.0002,2]
[330411678,1719353467136,-500.0,0.0002,2]
[330411679,1719353467146,-500.0,0.0002,2]
[330411680,1719353467155,-2118.73,0.0002,2]
[330411681,1719353467165,-713.79,0.0002,2]
[330411682,1719353467175,-968.65,0.0002,2]
[330411683,1719353467184,-522.59,0.0002,2]
[330411684,1719353467193,-500.0,0.0002,2]
[330411685,1719353467203,-500.0,0.0002,2]
[330411686,1719353467212,-1858.43,0.0002,2]
[330411687,1719353467222,-722.57,0.0002,2]
[330411688,1719353467231,-500.0,0.0002,2]
[330411689,1719353467247,-500.0,0.0002,2]
[330411690,1719353467256,-1426.9,0.0002,2]
[330411691,1719353467265,-1196.55,0.0002,2]
[330411692,1719353467278,-500.0,0.0002,2]
[330411693,1719353467289,-500.0,0.0002,2]
[330411694,1719353467299,-500.0,0.0002,2]
[330411695,1719353467308,-652.13,0.0002,2]
[330411696,1719353467320,-222.56909315,0.0002,2]
[330411697,1719353467330,-500.0,0.0002,2]
[330411698,1719353467340,-500.0,0.0002,2]
[330411699,1719353467349,-1074.95,0.0002,2]
[330411700,1719353467358,-170.10269594,0.0002,2]
[330411701,1719353467368,-310.57583907,0.0002,2]
[330411702,1719353467378,-500.0,0.0002,2]
[330411703,1719353467387,-500.0,0.0002,2]
[330411704,1719353467397,-500.0,0.0002,2]
[330411705,1719353467406,-500.0,0.0002,2]
[330411706,1719353467415,-500.0,0.0002,2]
[330411707,1719353467425,-2124.76,0.0002,2]
[330411708,1719353467434,-500.0,0.0002,2]
[330411709,1719353467443,-257.15258562,0.0002,2]
[330411710,1719353467454,-735.72,0.0002,2]
[330411711,1719353467464,-1178.16,0.0002,2]
[330411712,1719353467473,-1380.29,0.0002,2]
[330411713,1719353467484,-500.0,0.0002,2]
[330411714,1719353467497,-603.16,0.0002,2]
[330411715,1719353467507,-500.0,0.0002,2]
[330411716,1719353467516,-861.21,0.0002,2]
[330411717,1719353467527,-500.0,0.0002,2]
[330411718,1719353467537,-500.0,0.0002,2]
[330411719,1719353467547,-836.51,0.0002,2]
[330411720,1719353467556,-1314.64,0.0002,2]
[330411721,1719353467565,-577.41,0.0002,2]
[330411722,1719353467575,-1400.58,0.0002,2]
[330411723,1719353467584,-533.76858192,0.0002,2]
[330411724,1719353467594,-828.52,0.0002,2]
[330411725,1719353467603,-2291.94,0.0002,2]
[330411726,1719353467612,-500.0,0.0002,2]
[330411727,1719353467621,-500.0,0.0002,2]
[330411728,1719353467638,-676.81,0.0002,2]
[330411729,1719353467651,-503.84,0.0002,2]
[330411730,1719353467661,-1025.84,0.0002,2]
[330411731,1719353467671,-625.48,0.0002,2]
[330411732,1719353467681,-623.6190751,0.0002,2]
[330411733,1719353467691,-1613.13,0.0002,2]
[330411734,1719353467700,-500.0,0.0002,2]
[330411735,1719353467710,-500.0,0.0002,2]
[330411736,1719353467720,-500.0,0.0002,2]
[330411737,1719353467729,-939.73,0.0002,2]
[330411738,1719353467742,-1489.91,0.0002,2]
[330411739,1719353467752,-654.6,0.0002,2]
[330411740,1719353467764,-1167.1,0.0002,2]
[330411741,1719353467773,-803.46,0.0002,2]
[330411742,1719353467782,-678.38,0.0002,2]
[330411743,1719353467792,-500.0,0.0002,2]
[330411744,1719353467801,-500.0,0.0002,2]
[330411745,1719353467810,-921.09,0.0002,2]
[330411746,1719353467820,-1167.54,0.0002,2]
[330411747,1719353467829,-500.0,0.0002,2]
[330411748,1719353467839,-862.65,0.0002,2]
[330411749,1719353467848,-500.0,0.0002,2]
[330411750,1719353467857,-466.52616715,0.0002,2]
[330411751,1719353467866,-500.0,0.0002,2]
[330411752,1719353467875,-831.05,0.0002,2]
[330411753,1719353467885,-500.0,0.0002,2]